bitfinex/quotes_BTCUSD_20250825
["timestamp","ask_amount","ask_price","bid_price","bid_amount"]
[1756101680336,4.814e-05,112590.0,112580.0,0.66005432]
[1756101680548,4.814e-05,112590.0,112580.0,1.64815695]
[1756101680754,4.814e-05,112590.0,112580.0,1.74815695]
[1756101681399,4.814e-05,112590.0,112580.0,1.74811695]
[1756101681613,4.814e-05,112590.0,112580.0,1.59591695]
[1756101681823,4.814e-05,112590.0,112580.0,0.56001432]
[1756101683059,4.814e-05,112590.0,112580.0,0.66001432]
[1756101683264,4.814e-05,112590.0,112580.0,0.68670932]
[1756101683470,4.814e-05,112590.0,112580.0,0.43450932]
[1756101683679,4.814e-05,112590.0,112580.0,0.68670932]
[1756101686173,0.13683947,112620.0,112610.0,0.29439248]
[1756101686394,1.23961558,112620.0,112610.0,0.39275216]
[1756101686601,1.23684077,112620.0,112610.0,0.54495216]
[1756101686811,1.23684077,112620.0,112610.0,0.57164616]
[1756101687418,1.23684077,112620.0,112610.0,0.39404204]
[1756101687624,1.23684077,112620.0,112610.0,0.57164616]
[1756101688240,1.23784077,112620.0,112610.0,0.24184204]
[1756101688444,1.25677175,112620.0,112610.0,0.24184204]
[1756101688861,1.25677175,112620.0,112610.0,0.1425027]
[1756101689067,1.18567012,112620.0,112610.0,0.24184204]
[1756101690149,1.18567012,112620.0,112610.0,0.39400204]
[1756101690581,1.52567012,112620.0,112610.0,0.24184204]
[1756101690797,1.52567012,112620.0,112610.0,0.36730804]
[1756101691838,1.67783012,112620.0,112610.0,0.21514804]
[1756101694648,0.68972749,112620.0,112610.0,0.21514804]
[1756101694849,1.67783012,112620.0,112610.0,0.21514804]
[1756101695490,1.67783012,112620.0,112610.0,0.20367311]
[1756101697668,1.52567012,112620.0,112610.0,0.20367311]
[1756101700941,1.52567012,112620.0,112610.0,0.10433377]
[1756101701204,1.52567012,112620.0,112610.0,0.20367311]
[1756101702002,1.67779012,112620.0,112610.0,0.20367311]
[1756101702200,1.67779012,112620.0,112610.0,0.260004]
[1756101704116,1.67779012,112620.0,112610.0,0.263114]
[1756101704908,1.67779012,112620.0,112610.0,0.44268812]
[1756101705124,1.67779012,112620.0,112610.0,0.265084]
[1756101705327,1.67779012,112620.0,112610.0,0.263114]
[1756101707717,1.67779012,112620.0,112610.0,0.265084]
[1756101711154,1.67779012,112620.0,112610.0,0.263114]
[1756101711778,1.52567012,112620.0,112610.0,0.263114]
[1756101711980,1.67775012,112620.0,112610.0,0.265084]
[1756101712820,1.34808177,112620.0,112610.0,0.44268812]
[1756101713237,1.34808177,112620.0,112610.0,0.46938212]
[1756101714057,1.52567012,112620.0,112610.0,0.46938212]
[1756101715178,1.34808177,112620.0,112610.0,0.46938212]
[1756101716572,1.52567012,112620.0,112610.0,0.46938212]
[1756101717410,1.34808177,112620.0,112610.0,0.46938212]
[1756101718192,1.52567012,112620.0,112610.0,0.46938212]
[1756101718813,1.52567012,112620.0,112610.0,0.291778]
[1756101719018,1.52567012,112620.0,112610.0,0.289808]
[1756101719214,1.52567012,112620.0,112610.0,0.441848]
[1756101719420,1.52567012,112620.0,112610.0,0.289808]
[1756101719591,1.52567012,112620.0,112610.0,0.286698]
[1756101719828,1.67771012,112620.0,112610.0,0.438738]
[1756101720247,1.31773098,112620.0,112610.0,0.438738]
[1756101721740,1.31773098,112620.0,112610.0,0.61634212]
[1756101721943,1.31773098,112620.0,112610.0,0.61945212]
[1756101722352,1.65773098,112620.0,112610.0,0.61945212]
[1756101722631,1.65773098,112620.0,112610.0,0.438738]
[1756101723428,1.65773098,112620.0,112610.0,0.412044]
[1756101724865,1.67465294,112620.0,112610.0,0.412044]
[1756101725931,1.67465294,112620.0,112610.0,0.260004]
[1756101726132,1.67465294,112620.0,112610.0,0.412044]
[1756101728105,1.52261294,112620.0,112610.0,0.59472812]
[1756101728316,0.53451031,112620.0,112610.0,0.59472812]
[1756101728524,1.52261294,112620.0,112610.0,0.62142312]
[1756101730960,1.52261294,112620.0,112610.0,0.443819]
[1756101731694,1.52261294,112620.0,112610.0,0.62142312]
[1756101732870,0.35692196,112620.0,112610.0,0.62142312]
[1756101733082,1.52261294,112620.0,112610.0,0.62142312]
[1756101733730,1.52261294,112620.0,112610.0,0.443819]
[1756101734618,1.52261294,112620.0,112610.0,0.62142312]
[1756101735744,1.52261294,112620.0,112610.0,0.441849]
[1756101735952,1.67461294,112620.0,112610.0,0.289809]
[1756101736159,1.67461294,112620.0,112610.0,0.412004]
[1756101736811,0.51760412,112610.0,112600.0,0.12919534]
[1756101737020,1.65770675,112610.0,112600.0,0.18622409]
[1756101737233,1.65770675,112610.0,112600.0,0.08688475]
[1756101737450,2.64580938,112610.0,112600.0,0.10433377]
[1756101737635,2.64580938,112610.0,112600.0,0.23229239]
[1756101737837,2.64580938,112610.0,112600.0,0.13295305]
[1756101738056,2.64580938,112610.0,112600.0,0.23229239]
[1756101738253,2.64580938,112610.0,112600.0,0.13295305]
[1756101738467,2.64580938,112610.0,112600.0,0.23229239]
[1756101738673,1.65770675,112610.0,112600.0,0.23229239]
[1756101738887,1.65770675,112610.0,112600.0,0.23529239]
[1756101739096,2.68650234,112610.0,112600.0,0.13095862]
[1756101739316,2.68650234,112610.0,112600.0,0.10233934]
[1756101739729,2.68650234,112610.0,112600.0,0.003]
[1756101739934,2.68650234,112610.0,112600.0,0.10233934]
[1756101740764,2.68650234,112610.0,112600.0,0.10133934]
[1756101741406,2.68650234,112610.0,112600.0,0.002]
[1756101741619,0.17761989,112600.0,112590.0,0.09933934]
[1756101741800,2.30578515,112600.0,112590.0,0.11510625]
[1756101743259,2.30678515,112600.0,112590.0,0.11510625]
[1756101745508,0.17763566,112590.0,112580.0,0.03162879]
[1756101745720,1.31769829,112590.0,112580.0,0.21785288]
[1756101745920,1.31769829,112590.0,112580.0,0.11851354]
[1756101746124,1.31769829,112590.0,112580.0,0.01417977]
[1756101746324,1.31769829,112590.0,112580.0,0.11351911]
[1756101746529,1.31769829,112590.0,112580.0,0.11667911]
[1756101747539,1.31769829,112590.0,112580.0,0.11767911]
[1756101748022,1.31769829,112590.0,112580.0,0.11667911]
[1756101748242,0.32959566,112590.0,112580.0,0.11667911]
[1756101748459,1.31769829,112590.0,112580.0,0.11863911]
[1756101748655,1.31869829,112590.0,112580.0,0.11863911]
[1756101749115,1.16673829,112590.0,112580.0,0.11863911]
[1756101749344,1.31869829,112590.0,112580.0,0.11863911]
[1756101750208,0.51765144,112580.0,112570.0,0.09933934]
[1756101750408,1.65771407,112580.0,112570.0,0.19134409]
[1756101750766,0.66961144,112580.0,112570.0,0.19134409]
[1756101751005,1.65771407,112580.0,112570.0,0.19134409]
[1756101751235,2.73268635,112580.0,112570.0,0.18622409]
[1756101751448,0.51766722,112570.0,112560.0,0.09933934]
[1756101751666,0.51766722,112570.0,112550.0,0.01]
[1756101751667,0.17768301,112560.0,112550.0,0.10933934]
[1756101751881,2.31624827,112560.0,112550.0,0.01]
[1756101752127,2.31624827,112560.0,112550.0,0.01047581]
[1756101752560,2.31624827,112560.0,112550.0,0.02181333]
[1756101752765,2.65624827,112560.0,112550.0,0.01047581]
[1756101753209,2.65724827,112560.0,112550.0,0.01047581]
[1756101754238,0.68104301,112560.0,112550.0,0.01047581]
[1756101754493,2.65724827,112560.0,112550.0,0.01047581]
[1756101754694,2.65724827,112560.0,112550.0,0.02181333]
[1756101754899,2.72556827,112560.0,112550.0,0.02181333]
[1756101756136,0.77779701,112560.0,112550.0,0.02181333]
[1756101756361,2.75400227,112560.0,112550.0,0.02181333]
[1756101758774,2.75372227,112560.0,112550.0,0.02693333]
[1756101759203,2.79429323,112560.0,112550.0,0.02693333]
[1756101759641,2.79421323,112560.0,112550.0,0.02693333]
[1756101759870,2.81072432,112560.0,112550.0,0.02693333]
[1756101761190,2.78397032,112560.0,112550.0,0.12643267]
[1756101762462,2.78397016,112560.0,112550.0,0.12643267]
[1756101765095,2.78365016,112560.0,112550.0,0.12643267]
[1756101765308,0.6440849,112560.0,112550.0,0.39101622]
[1756101765519,1.72698753,112560.0,112550.0,0.40846524]
[1756101765940,1.72694753,112560.0,112550.0,0.40846524]
[1756101766188,1.04618452,112560.0,112550.0,0.40846524]
[1756101766408,1.00561356,112560.0,112550.0,0.40846524]
[1756101766627,0.01751093,112560.0,112550.0,0.40846524]
[1756101766854,0.001,112560.0,112550.0,0.40846524]
[1756101767066,0.001,112560.0,112550.0,0.46453224]
[1756101767971,0.98910263,112560.0,112550.0,0.39617224]
[1756101768395,0.34,112570.0,112560.0,0.2804447]
[1756101768604,1.49186263,112570.0,112560.0,0.2825647]
[1756101769035,1.66952985,112570.0,112560.0,0.37251945]
[1756101769244,1.66952985,112570.0,112560.0,0.25272896]
[1756101769657,1.66952985,112570.0,112560.0,0.43041197]
[1756101769858,1.66952985,112570.0,112560.0,0.25272896]
[1756101770089,1.49186263,112570.0,112560.0,0.43141197]
[1756101770283,1.66952985,112570.0,112560.0,0.43141197]
[1756101770490,1.66952985,112570.0,112560.0,0.25372896]
[1756101771627,0.68142722,112570.0,112560.0,0.25472896]
[1756101771842,1.66952985,112570.0,112560.0,0.43241197]
[1756101772055,1.49186263,112570.0,112560.0,0.43241197]
[1756101772258,1.66952985,112570.0,112560.0,0.43241197]
[1756101773020,0.68142722,112570.0,112560.0,0.43241197]
[1756101773230,1.66952985,112570.0,112560.0,0.43241197]
[1756101774046,1.66952985,112570.0,112560.0,0.25472896]
[1756101775221,1.67150985,112570.0,112560.0,0.25472896]
[1756101776052,0.68142722,112570.0,112560.0,0.25472896]
[1756101776502,1.67151985,112570.0,112560.0,0.14732519]
[1756101776764,1.67151985,112570.0,112560.0,0.15039519]
[1756101777177,1.66952985,112570.0,112560.0,0.15039519]
[1756101777568,1.66952985,112570.0,112560.0,0.43241197]
[1756101777775,1.66988985,112570.0,112560.0,0.43241197]
[1756101778029,1.50576985,112570.0,112560.0,0.43241197]
[1756101778234,1.49222263,112570.0,112560.0,0.43241197]
[1756101778413,1.66988985,112570.0,112560.0,0.43241197]
[1756101779429,1.49222263,112570.0,112560.0,0.43241197]
[1756101780536,1.66988985,112570.0,112560.0,0.43241197]
[1756101780714,1.49222263,112570.0,112560.0,0.43241197]
[1756101780957,1.66988985,112570.0,112560.0,0.43241197]
[1756101781615,0.5038,112570.0,112560.0,0.43241197]
[1756101781826,1.32810263,112570.0,112560.0,0.43241197]
[1756101782657,1.50576985,112570.0,112560.0,0.43241197]
[1756101782871,0.50396,112570.0,112560.0,0.45911597]
[1756101783097,1.49206263,112570.0,112560.0,0.45911597]
[1756101783313,0.50396,112570.0,112560.0,0.45911597]
[1756101783530,0.34,112570.0,112560.0,0.45911597]
[1756101785265,0.4484,112590.0,112580.0,0.28041313]
[1756101785488,0.34137989,112600.0,112590.0,0.28039735]
[1756101785705,0.68137989,112600.0,112590.0,0.3724721]
[1756101785918,1.67146252,112600.0,112590.0,0.3724721]
[1756101786128,1.67146252,112600.0,112590.0,0.18964644]
[1756101786338,2.65956515,112600.0,112590.0,0.18964644]
[1756101786609,2.65956515,112600.0,112590.0,0.24749329]
[1756101786828,2.66004672,112600.0,112590.0,0.24749329]
[1756101787267,2.66276672,112600.0,112590.0,0.24749329]
[1756101787885,2.66276672,112600.0,112590.0,0.18964644]
[1756101788102,2.48242683,112600.0,112590.0,0.3672821]
[1756101788338,2.65976672,112600.0,112590.0,0.3664821]
[1756101788559,2.66076672,112600.0,112590.0,0.3664821]
[1756101788782,2.66076672,112600.0,112590.0,0.18884644]
[1756101789000,2.66076672,112600.0,112590.0,0.22580323]
[1756101789212,2.66348672,112600.0,112590.0,0.22580323]
[1756101790686,2.66076672,112600.0,112590.0,0.22580323]
[1756101790932,2.66348672,112600.0,112590.0,0.22580323]
[1756101791374,2.66076672,112600.0,112590.0,0.22580323]
[1756101791839,2.66076672,112600.0,112590.0,0.22791323]
[1756101792062,1.67266409,112600.0,112590.0,0.23090323]
[1756101792279,1.67266409,112600.0,112590.0,0.22580323]
[1756101792701,0.68456146,112600.0,112590.0,0.22580323]
[1756101792967,2.66076672,112600.0,112590.0,0.22580323]
[1756101794472,2.66348672,112600.0,112590.0,0.18884644]
[1756101794923,2.66348672,112600.0,112580.0,0.08451267]
[1756101794924,0.51763566,112590.0,112580.0,0.08451267]
[1756101795150,1.66865829,112590.0,112580.0,0.18884644]
[1756101795375,1.67335829,112590.0,112580.0,0.18884644]
[1756101797802,1.67335829,112590.0,112580.0,0.08451267]
[1756101798447,1.67064829,112590.0,112580.0,0.08451267]
[1756101799011,1.67064829,112590.0,112580.0,0.09326294]
[1756101799211,1.67064829,112590.0,112580.0,0.09836294]
[1756101799434,1.66865829,112590.0,112580.0,0.09836294]
[1756101799987,1.67064829,112590.0,112580.0,0.09836294]
[1756101800564,1.67064829,112590.0,112580.0,0.09326294]
[1756101808516,0.68254566,112590.0,112580.0,0.09326294]
[1756101808745,1.67064829,112590.0,112580.0,0.09326294]
[1756101810091,1.67064829,112590.0,112580.0,0.09836294]
[1756101810320,1.67064829,112590.0,112580.0,0.09326294]
[1756101810523,1.67064829,112590.0,112580.0,0.08451267]
[1756101810969,0.51765144,112580.0,112570.0,0.01744902]
[1756101811183,1.66914407,112580.0,112570.0,0.18884644]
[1756101811403,1.66914407,112580.0,112570.0,0.22417008]
[1756101812477,1.66914407,112580.0,112570.0,0.18884644]
[1756101812916,0.68104144,112580.0,112570.0,0.19394644]
[1756101813109,1.66914407,112580.0,112570.0,0.19394644]
[1756101813528,0.68104144,112580.0,112570.0,0.19394644]
[1756101813667,1.66914407,112580.0,112570.0,0.19394644]
[1756101813873,1.66914407,112580.0,112570.0,0.24724925]
[1756101816811,1.66914407,112580.0,112570.0,0.24214925]
[1756101817254,1.66914407,112580.0,112570.0,0.24513925]
[1756101817644,1.66914407,112580.0,112570.0,0.19183644]
[1756101818270,1.66914407,112580.0,112570.0,0.19394644]
[1756101818477,1.66914407,112580.0,112570.0,0.18884644]
[1756101818893,1.66914407,112580.0,112570.0,0.08451267]
[1756101819924,1.66914407,112580.0,112570.0,0.08763267]
[1756101820134,1.66914407,112580.0,112570.0,0.08451267]
[1756101820342,1.66914407,112580.0,112570.0,0.09327594]
[1756101821507,0.51766722,112570.0,112560.0,0.18124902]
[1756101821721,1.66827985,112570.0,112560.0,0.18884644]
[1756101821924,1.66827985,112570.0,112560.0,0.19083644]
[1756101822176,1.66827985,112570.0,112560.0,0.19395644]
[1756101822591,1.66827985,112570.0,112560.0,0.19495644]
[1756101822798,1.66628985,112570.0,112560.0,0.19495644]
[1756101823654,1.62727832,112570.0,112560.0,0.25777643]
[1756101824499,1.62727832,112570.0,112560.0,0.25977643]
[1756101824761,1.62927832,112570.0,112560.0,0.25466643]
[1756101825170,1.62927832,112570.0,112560.0,0.06581999]
[1756101825402,2.62007095,112570.0,112560.0,0.003]
[1756101825813,1.63196832,112570.0,112560.0,0.003]
[1756101826239,1.63196832,112570.0,112560.0,0.002]
[1756101826651,1.63296832,112570.0,112560.0,0.002]
[1756101826856,0.51768301,112560.0,112550.0,0.08451267]
[1756101827070,1.66775564,112560.0,112550.0,0.18020069]
[1756101827320,2.65585827,112560.0,112550.0,0.18020069]
[1756101828197,2.65633955,112560.0,112550.0,0.18020069]
[1756101828595,2.65633955,112560.0,112550.0,0.18332069]
[1756101828813,2.65633955,112560.0,112550.0,0.18531069]
[1756101829509,0.67973429,112560.0,112550.0,0.18531069]
[1756101829719,1.66582692,112560.0,112550.0,0.18531069]
[1756101829943,1.50626692,112560.0,112550.0,0.18531069]
[1756101830156,1.66582692,112560.0,112550.0,0.18531069]
[1756101831456,1.66783692,112560.0,112550.0,0.18531069]
[1756101832057,1.66783692,112560.0,112550.0,0.18020069]
[1756101832310,2.65593955,112560.0,112550.0,0.18020069]
[1756101833339,2.65593955,112560.0,112550.0,0.18332069]
[1756101834724,2.65593955,112560.0,112550.0,0.18020069]
[1756101835943,0.67973429,112560.0,112550.0,0.18531069]
[1756101836148,2.65593955,112560.0,112550.0,0.18531069]
[1756101836567,1.66783692,112560.0,112550.0,0.18531069]
[1756101839135,2.65593955,112560.0,112550.0,0.18531069]
[1756101841079,2.65593955,112560.0,112550.0,0.18219069]
[1756101841283,1.66783692,112560.0,112550.0,0.18531069]
[1756101842737,1.66582692,112560.0,112550.0,0.18531069]
[1756101842943,1.66780692,112560.0,112550.0,0.18531069]
[1756101843371,0.67680429,112560.0,112550.0,0.18531069]
[1756101843575,1.66490692,112560.0,112550.0,0.18531069]
[1756101843819,0.34048128,112560.0,112550.0,0.38045851]
[1756101844204,0.00048128,112560.0,112550.0,0.38045851]
[1756101844426,0.98858391,112560.0,112550.0,0.38045851]
[1756101845183,1.16626692,112560.0,112550.0,0.38045851]
[1756101845387,1.16824692,112560.0,112550.0,0.36143971]
[1756101845610,1.32692692,112560.0,112550.0,0.20263971]
[1756101846036,1.32692692,112560.0,112550.0,0.12124704]
[1756101846250,2.65502955,112560.0,112550.0,0.18320069]
[1756101847307,2.90084617,112560.0,112550.0,0.18120069]
[1756101847515,2.90084617,112560.0,112550.0,0.18020069]
[1756101847932,2.90084617,112560.0,112550.0,0.00880327]
[1756101847933,2.90353617,112560.0,112550.0,0.00880327]
[1756101849470,2.65670127,112560.0,112550.0,0.00880327]
[1756101851420,2.68341427,112560.0,112550.0,0.00880327]
[1756101852030,2.68072427,112560.0,112550.0,0.00880327]
[1756101852411,2.68032427,112560.0,112550.0,0.00880327]
[1756101853318,2.52204427,112560.0,112550.0,0.00880327]
[1756101853528,1.69261078,112560.0,112550.0,0.00880327]
[1756101854221,2.68020427,112560.0,112550.0,0.00880327]
[1756101854665,2.68290427,112560.0,112550.0,0.00880327]
[1756101855853,0.1776988,112550.0,112540.0,0.08491267]
[1756101856076,1.32801229,112550.0,112540.0,0.08491267]
[1756101857375,1.32801229,112550.0,112540.0,0.08591267]
[1756101857830,1.32801229,112550.0,112540.0,0.08491267]
[1756101858469,1.32532229,112550.0,112540.0,0.08491267]
[1756101858678,1.32803229,112550.0,112540.0,0.0004]
[1756101858891,1.75491704,112550.0,112540.0,0.0004]
[1756101859881,1.78163704,112550.0,112540.0,0.0004]
[1756101860082,1.78363704,112550.0,112540.0,0.0004]
[1756101860532,1.69675229,112550.0,112540.0,0.0004]
[1756101861224,1.69875229,112550.0,112540.0,0.0004]
[1756101861462,1.71533211,112550.0,112540.0,0.0004]
[1756101862622,1.55729211,112550.0,112540.0,0.0004]
[1756101862832,1.71266211,112550.0,112540.0,0.0004]
[1756101863104,1.71262211,112550.0,112540.0,0.0004]
[1756101863331,1.69604229,112550.0,112540.0,0.0004]
[1756101865106,1.69608229,112550.0,112540.0,0.0004]
[1756101868392,1.69588229,112550.0,112540.0,0.0004]
[1756101868838,1.69381229,112550.0,112540.0,0.00559]
[1756101869924,1.69181229,112550.0,112540.0,0.00559]
[1756101870179,1.69381229,112550.0,112540.0,0.00559]
[1756101870654,1.69181229,112550.0,112540.0,0.00559]
[1756101870854,1.69479229,112550.0,112540.0,0.00559]
[1756101871070,1.69279229,112550.0,112540.0,0.00559]
[1756101871502,1.69479229,112550.0,112540.0,0.00559]
[1756101871714,1.69279229,112550.0,112540.0,0.00559]
[1756101872160,1.69379229,112550.0,112540.0,0.00559]
[1756101872577,1.69181229,112550.0,112540.0,0.00559]
[1756101872789,1.53401229,112550.0,112540.0,0.00559]
[1756101873230,1.53401229,112550.0,112540.0,0.09010267]
[1756101873467,1.69149229,112550.0,112540.0,0.11700584]
[1756101874769,1.69049229,112550.0,112540.0,0.11700584]
[1756101875210,1.69149229,112550.0,112540.0,0.11700584]
[1756101875424,1.69049229,112550.0,112540.0,0.11700584]
[1756101875632,1.68949229,112550.0,112540.0,0.11700584]
[1756101876116,1.69049229,112550.0,112540.0,0.11700584]
[1756101876533,1.68949229,112550.0,112540.0,0.11700584]
[1756101877633,1.68949229,112550.0,112540.0,0.09010267]
[1756101878334,1.69150229,112550.0,112540.0,0.08491267]
[1756101880280,1.69222229,112550.0,112540.0,0.0004]
[1756101880502,1.69322229,112550.0,112540.0,0.0004]
[1756101881812,1.69422229,112550.0,112540.0,0.0004]
[1756101882026,1.69322229,112550.0,112540.0,0.0004]
[1756101882260,1.69222229,112550.0,112540.0,0.0004]
[1756101882473,1.69322229,112550.0,112540.0,0.0004]
[1756101882699,0.7075988,112550.0,112540.0,0.0004]
[1756101882911,1.69619229,112550.0,112540.0,0.0004]
[1756101883124,1.69350229,112550.0,112540.0,0.0004]
[1756101883607,1.69326229,112550.0,112540.0,0.0004]
[1756101884518,1.69125229,112550.0,112540.0,0.00542]
[1756101884751,1.53401229,112550.0,112540.0,0.00542]
[1756101884995,1.69315229,112550.0,112540.0,0.0004]
[1756101885226,1.53599229,112550.0,112540.0,0.00542]
[1756101885468,1.69547229,112550.0,112540.0,0.0004]
[1756101886444,1.69547229,112550.0,112540.0,0.00542]
[1756101886932,1.69819229,112550.0,112540.0,0.0004]
[1756101887180,1.69547229,112550.0,112540.0,0.0004]
[1756101887408,1.69819229,112550.0,112540.0,0.0004]
[1756101887654,1.69547229,112550.0,112540.0,0.0004]
[1756101888095,2.71120677,112550.0,112540.0,0.0004]
[1756101888578,1.72361328,112550.0,112540.0,0.0004]
[1756101888743,2.71120677,112550.0,112540.0,0.0004]
[1756101889819,2.69746648,112550.0,112540.0,0.0004]
[1756101891173,2.72340072,112550.0,112540.0,0.0004]
[1756101893724,1.70608624,112550.0,112540.0,0.00542]
[1756101895449,2.72380072,112550.0,112540.0,0.0004]
[1756101895686,1.73620723,112550.0,112540.0,0.0004]
[1756101895914,1.73349723,112550.0,112540.0,0.0004]
[1756101896622,1.70807624,112550.0,112540.0,0.0004]
[1756101897351,1.77643624,112550.0,112540.0,0.0004]
[1756101897590,2.83783136,112550.0,112540.0,0.0004]
[1756101897844,0.78884275,112550.0,112540.0,0.0004]
[1756101898078,1.77643624,112550.0,112540.0,0.0004]
[1756101899323,1.77440624,112550.0,112540.0,0.08993267]
[1756101899559,1.77440624,112550.0,112540.0,0.11681876]
[1756101900456,1.748472,112550.0,112540.0,0.11681876]
[1756101900672,1.588632,112550.0,112540.0,0.11681876]
[1756101901133,1.748952,112550.0,112540.0,0.11681876]
[1756101901654,1.77483408,112550.0,112540.0,0.11681876]
[1756101901867,1.61451408,112550.0,112540.0,0.11681876]
[1756101902092,0.05460208,112550.0,112540.0,0.39999189]
[1756101902296,1.01547557,112550.0,112540.0,0.39886712]
[1756101902967,0.02788208,112550.0,112540.0,0.39886712]
[1756101903188,1.35547557,112550.0,112540.0,0.39886712]
[1756101903396,1.35447557,112550.0,112540.0,0.39886712]
[1756101904079,1.35347557,112550.0,112540.0,0.39886712]
[1756101905430,1.35347557,112550.0,112540.0,0.39986712]
[1756101906847,1.35347557,112550.0,112540.0,0.40186712]
[1756101908418,0.36588208,112550.0,112540.0,0.40186712]
[1756101908633,1.35347557,112550.0,112540.0,0.56214712]
[1756101908856,0.36588208,112550.0,112540.0,0.56214712]
[1756101909063,0.00048128,112560.0,112550.0,0.27966049]
[1756101909285,1.32807477,112560.0,112550.0,0.42019128]
[1756101909515,0.34048128,112560.0,112550.0,0.42019128]
[1756101909721,1.32807477,112560.0,112550.0,0.42019128]
[1756101910134,1.35429723,112560.0,112550.0,0.42019128]
[1756101910568,0.36670374,112560.0,112550.0,0.42019128]
[1756101910784,1.35429723,112560.0,112550.0,0.42019128]
[1756101911234,0.00048128,112560.0,112550.0,0.48855128]
[1756101911936,0.00048128,112560.0,112550.0,1.67614477]
[1756101912818,0.00048128,112560.0,112550.0,1.68014477]
[1756101913031,0.00048128,112560.0,112550.0,1.67614477]
[1756101913470,1e-08,112560.0,112550.0,1.68114477]
[1756101913684,1e-08,112560.0,112550.0,1.68314477]
[1756101914174,1e-08,112560.0,112550.0,1.67814477]
[1756101914383,1e-08,112560.0,112550.0,2.01614477]
[1756101914609,1e-08,112560.0,112550.0,2.02114477]
[1756101915711,1e-08,112560.0,112550.0,2.01614477]
[1756101916137,1e-08,112560.0,112550.0,2.02314477]
[1756101916570,0.039,112590.0,112580.0,0.26216411]
[1756101916784,0.039,112590.0,112580.0,0.62364213]
[1756101916995,1.02659349,112590.0,112580.0,0.62665213]
[1756101917259,1.02854349,112590.0,112580.0,0.62657213]
[1756101917734,1.02659349,112590.0,112580.0,0.62657213]
[1756101917958,1.02659349,112590.0,112580.0,0.66026813]
[1756101918176,1.02854349,112590.0,112580.0,0.41093546]
[1756101918410,1.02854349,112590.0,112580.0,0.54387946]
[1756101918637,1.02854349,112590.0,112580.0,0.62839213]
[1756101918857,1.37126349,112590.0,112580.0,0.61094311]
[1756101919078,1.37126349,112590.0,112580.0,0.53962311]
[1756101919302,1.37126349,112590.0,112580.0,0.37542069]
[1756101919610,1.54889915,112590.0,112580.0,0.19833167]
[1756101919830,1.54889915,112590.0,112580.0,0.36097167]
[1756101920259,1.54889915,112590.0,112580.0,0.37842069]
[1756101920473,1.54889915,112590.0,112580.0,0.38042069]
[1756101920914,1.54889915,112590.0,112580.0,0.37842069]
[1756101921139,1.54889915,112590.0,112580.0,0.37942069]
[1756101921566,1.54889915,112590.0,112580.0,0.29170802]
[1756101921778,1.54889915,112590.0,112580.0,0.21678069]
[1756101921968,1.70833915,112590.0,112580.0,0.11244692]
[1756101922887,1.7489153,112590.0,112580.0,0.11444692]
[1756101923335,1.7489153,112590.0,112580.0,0.11144692]
[1756101925914,1.5867553,112590.0,112580.0,0.11144692]
[1756101926120,1.5894753,112590.0,112580.0,0.11144692]
[1756101928479,1.7484753,112590.0,112580.0,0.11144692]
[1756101929319,1.5894753,112590.0,112580.0,0.11144692]
[1756101929525,1.7483553,112590.0,112580.0,0.11144692]
[1756101931438,1.5894753,112590.0,112580.0,0.11144692]
[1756101931642,1.7482353,112590.0,112580.0,0.11144692]
[1756101932082,1.5894753,112590.0,112580.0,0.11144692]
[1756101932530,1.5867553,112590.0,112580.0,0.11144692]
[1756101933578,1.5894753,112590.0,112580.0,0.11144692]
[1756101934367,1.5894753,112590.0,112580.0,0.08456083]
[1756101934548,1.6161793,112590.0,112580.0,0.08456083]
[1756101934751,2.60377279,112590.0,112580.0,4.816e-05]
[1756101935696,2.76225279,112590.0,112580.0,4.816e-05]
[1756101935918,2.76325279,112590.0,112580.0,4.816e-05]
[1756101936358,2.60377279,112590.0,112580.0,4.816e-05]
[1756101936784,2.76417279,112590.0,112580.0,4.816e-05]
[1756101937007,2.76617279,112590.0,112580.0,4.816e-05]
[1756101937496,2.76417279,112590.0,112580.0,4.816e-05]
[1756101937749,2.72717279,112590.0,112580.0,4.816e-05]
[1756101938493,2.74107531,112590.0,112580.0,4.816e-05]
[1756101938966,2.74111531,112590.0,112580.0,4.816e-05]
[1756101940562,2.73632531,112590.0,112580.0,4.816e-05]
[1756101940759,2.57997531,112590.0,112580.0,4.816e-05]
[1756101941080,1.7367993,112590.0,112580.0,0.00517816]
[1756101941489,1.7367993,112590.0,112580.0,0.00210816]
[1756101941687,1.7367993,112590.0,112580.0,4.816e-05]
[1756101942095,2.72439279,112590.0,112580.0,4.816e-05]
[1756101943043,1.7367993,112590.0,112580.0,4.816e-05]
[1756101943562,1.5765093,112590.0,112580.0,0.00517816]
[1756101943770,1.5765093,112590.0,112580.0,0.08969083]
[1756101943950,1.7346693,112590.0,112580.0,0.09865991]
[1756101944399,1.2365093,112590.0,112580.0,0.09865991]
[1756101944609,1.7326293,112590.0,112580.0,0.09865991]
[1756101944789,1.7325893,112590.0,112580.0,0.09865991]
[1756101945024,0.41128015,112590.0,112580.0,0.20299368]
[1756101945205,1.37016964,112590.0,112580.0,0.38064512]
[1756101945412,1.03016964,112590.0,112580.0,0.38064512]
[1756101945628,1.02816964,112590.0,112580.0,0.38064512]
[1756101945840,1.36916964,112590.0,112580.0,0.38064512]
[1756101946710,1.36916964,112590.0,112580.0,0.20299368]
[1756101946943,1.36916964,112590.0,112580.0,0.38064512]
[1756101946944,1.14196643,112590.0,112580.0,0.38064512]
[1756101947146,1.32759349,112590.0,112580.0,0.38064512]
[1756101948131,1.32759349,112590.0,112580.0,0.20299368]
[1756101949801,1.50522915,112590.0,112580.0,0.20299368]
[1756101950130,1.50522915,112590.0,112580.0,0.18041466]
[1756101950131,1.66523915,112590.0,112580.0,0.18041466]
[1756101950268,1.66523915,112590.0,112580.0,0.19786368]
[1756101952405,1.70458694,112590.0,112580.0,0.19786368]
[1756101953688,1.70458694,112590.0,112580.0,0.20299368]
[1756101953927,1.70261694,112590.0,112580.0,0.20299368]
[1756101954145,1.70458694,112590.0,112580.0,0.20299368]
[1756101954571,1.70261694,112590.0,112580.0,0.20299368]
[1756101955293,1.70458694,112590.0,112580.0,0.20299368]
[1756101955543,1.39364328,112590.0,112580.0,0.20299368]
[1756101955729,1.36694128,112590.0,112580.0,0.38064512]
[1756101955940,1.32759349,112590.0,112580.0,0.38064512]
[1756101956161,0.34,112590.0,112580.0,0.53860512]
[1756101956367,1.32759349,112590.0,112580.0,0.53860512]
[1756101957015,1.32759349,112590.0,112580.0,0.54060512]
[1756101957439,1.32759349,112590.0,112580.0,0.36295368]
[1756101957654,1.32759349,112590.0,112580.0,0.54060512]
[1756101957871,1.32759349,112590.0,112580.0,0.54160512]
[1756101961469,1.32759349,112590.0,112580.0,0.36363368]
[1756101962525,1.36073045,112590.0,112580.0,0.36363368]
[1756101963396,1.54033611,112590.0,112580.0,0.20599368]
[1756101963607,1.54033611,112590.0,112580.0,0.36343368]
[1756101964254,1.54033611,112590.0,112580.0,0.20599368]
[1756101964461,1.70049611,112590.0,112580.0,0.1918946]
[1756101965398,1.72719811,112590.0,112580.0,0.1908946]